Cogmind - Beta 9 @@@ ROGUE MODE // 2019.10.22 @ 12:43:55 Player: Logjam Result: Destroyed by H-55 Commando with Assault Rifle Performance ------------- Evolutions (2) 1000 Regions Visited (6) 1200 Robots Destroyed (27) 135 Value Destroyed (578) 578 Prototype IDs (0) 0 Alien Tech Used (0) 0 Bonus (0) 0 TOTAL SCORE: 2913 Bonus ------- None Cogmind --------- Core Integrity 0/550 Matter 300/300 Energy 275/275 System Corruption 1% Temperature Cool (9) Location -8/Materials Parts ------- Power (1) Deuterium Engine Propulsion (2) Utility (6) Improved Salvage Targeting Computer Improved Salvage Targeting Computer Weapon (2) Inventory (4) Gravmag System Large Matter Pod (150) High-capacity Matter Pod (200) Improved Field Recycling Unit (0) Peak State ------------ Power Deuterium Engine Propulsion Combat Airjet Combat Airjet Utility Improved Heat Sink Small Storage Unit Improved Salvage Targeting Computer Improved Light Armor Plating Shield Generator Improved Field Recycling Unit Weapon Beam Rifle Shotgun Inventory Improved Ion Engine Gravmag System Medium Matter Pod Large Matter Pod High-capacity Matter Pod Improved Field Recycling Unit [Rating: 35] Favorites ----------- Power Light Ion Engine Engine Light Ion Engine Propulsion Aluminum Leg Leg Aluminum Leg Hover Unit Combat Airjet Utility Small Storage Unit Device Terrain Scanner Storage Small Storage Unit Processor Improved Salvage Targeting Computer Protection Hardened Light Armor Plating Weapon Light Assault Rifle Energy Gun Beam Rifle Energy Cannon Beam Cannon Ballistic Gun Light Assault Rifle Launcher Rocket Launcher Build | -11 -10 -9 -9 -9 -8 -8 ------- Run | Scr Mat Mat Min Exi Min Mat Slots Evolved 4 | . . 2 . . . 2 Power . | . . . . . . . Propulsion . | . . . . . . . Utility 4 | . . 2 . . . 2 Weapon . | . . . . . . . Parts Attached 51 | 6 5 10 6 3 2 19 Power 9 | 1 2 1 2 . . 3 Engine 9 | 1 2 1 2 . . 3 Core . | . . . . . . . Reactor . | . . . . . . . Propulsion 8 | 2 . 2 1 1 . 2 Treads . | . . . . . . . Leg 4 | 2 . 2 . . . . Wheel . | . . . . . . . Hover 4 | . . . 1 1 . 2 Flight . | . . . . . . . Utility 28 | 1 3 6 2 2 2 12 Device 10 | . 1 1 2 . 2 4 Storage 9 | 1 2 . . 1 . 5 Processor 2 | . . . . . . 2 Hackware . | . . . . . . . Protection 7 | . . 5 . 1 . 1 Artifact . | . . . . . . . Weapon 6 | 2 . 1 1 . . 2 Energy Gun 1 | . . . . . . 1 Energy Cannon 1 | . . 1 . . . . Ballistic Gun 3 | 2 . . . . . 1 Ballistic Cannon . | . . . . . . . Launcher 1 | . . . 1 . . . Special Weapon . | . . . . . . . Impact Weapon . | . . . . . . . Slashing Weapon . | . . . . . . . Piercing Weapon . | . . . . . . . Special Melee Weapon . | . . . . . . . Unidentified Prototypes . | . . . . . . . Parts Lost 19 | . 1 3 6 . . 9 Power 2 | . . 1 1 . . . Propulsion 3 | . . . 1 . . 2 Utility 9 | . . . 4 . . 5 Weapon 5 | . 1 2 . . . 2 Highest Loss Streak 6 | . 1 1 3 . . 6 Average Slot Usage (%) 78 | . 95 77 59 56 71 75 Engine 10 | . 13 9 4 11 11 9 Leg 16 | . 28 22 20 . . . Hover 5 | . . . . 22 22 13 Device 9 | . 13 8 3 . 5 14 Storage 12 | . 14 11 11 12 22 11 Processor 1 | . . . . . . 7 Protection 8 | . . 15 19 11 11 7 Ballistic Gun 11 | . 24 7 . . . 7 Naked Turns . | . . . . . . . Heaviest Build 65 | 9 40 21 22 15 16 65 Greatest Support 44 | 20 20 20 22 44 44 44 Greatest Overweight (x) 21 | . 1 1 1 . . 21 Average Overweight (x) . | . . . . . . . Largest Inventory Capacity 14 | 6 12 6 6 6 6 14 Average Capacity 6 | 5 6 6 6 6 6 8 Most Carried 11 | 2 6 6 6 5 5 11 Average Carried 5 | 1 4 5 5 4 4 6 Final Capacity 4 | . . . . . . 4 Final Carried 4 | . . . . . . 4 Class Distribution -------------------- 76% | Mutant 23% | Scavenger-Mutant Dominant Class ---------------- Mutant | -10/Materials Mutant | -9/Materials Mutant | -9/Mines Scavenger-Mutant | -9/Exiles Scavenger-Mutant | -8/Mines Scavenger-Mutant | -8/Materials Resources | -11 -10 -9 -9 -9 -8 -8 ----------- Run | Scr Mat Mat Min Exi Min Mat Matter Collected 1110 | 185 307 92 54 38 . 434 Remotely . | . . . . . . . Salvage Created 777 | . 255 147 22 . . 353 Parts 44 | . 19 6 . . . 19 Haulers Intercepted . | . . . . . . . Recyclers Shooed 8 | . 7 . . . . 1 Parts Field Recycled 3 | . . . . . . 3 Retrieved Matter 30 | . . . . . . 30 Parts Self-Destructed . | . . . . . . . Prevented . | . . . . . . . Kills | -11 -10 -9 -9 -9 -8 -8 ------- Run | Scr Mat Mat Min Exi Min Mat Combat Hostiles Destroyed 24 | . 9 3 5 . . 7 Guns 17 | . 9 1 . . . 7 Cannons 2 | . . 2 . . . . AOE 5 | . . . 5 . . . Classes Destroyed 8 | . 3 . 1 . . 4 Builder 1 | . . . . . . 1 Recycler 1 | . . . . . . 1 Watcher 1 | . 1 . . . . . Swarmer 8 | . 5 . . . . 3 Grunt 9 | . 4 3 . . . 2 Sentry 1 | . . . . . . 1 Hunter 1 | . . . . . . 1 Assembled 5 | . . . 5 . . . Best Kill Streak 5 | . 5 1 5 . . 3 Combat Bots Only 5 | . 5 1 5 . . 3 Max Kills in Single Turn 5 | . 1 1 5 . . 1 Gunslinging . | . . . . . . . Exploded 5 | . . . 5 . . . Melee . | . . . . . . . Uniques/NPCs Destroyed . | . . . . . . . Combat | -11 -10 -9 -9 -9 -8 -8 -------- Run | Scr Mat Mat Min Exi Min Mat Damage Taken 2928 | . 406 503 557 . 20 1442 Core 741 | . 55 47 88 . . 551 Absorbed by Shields 149 | . . . . . . 149 Core Remaining (%) 81 | 100 78 . . . 66 . Volleys Fired 99 | . 47 18 1 . . 33 Largest 2 | . 2 1 1 . . 2 Hottest 79 | . 40 60 33 . . 79 Shots Fired 152 | . 87 18 1 . . 46 Gun 140 | . 87 7 . . . 46 Cannon 11 | . . 11 . . . . Launcher 1 | . . . 1 . . . Special . | . . . . . . . Kinetic 127 | . 87 7 . . . 33 Thermal 24 | . . 11 . . . 13 Explosive 1 | . . . 1 . . . Electromagnetic . | . . . . . . . Robot Hit Streak 17 | . 9 4 . . . 17 Robot Miss Streak 5 | . 5 2 1 . . 5 Penetration Max . | . . . . . . . Secondary Targets 2 | . 2 . . . . . Max Gunslinging Chain 1 | . 1 . . . . . Shots Hit Robots 98 | . 52 13 . . . 33 Core Hits 73 | . 28 6 13 . . 26 Critical Hits . | . . . . . . . Critical Kills . | . . . . . . . Critical Parts Destroyed . | . . . . . . . Melee Attacks . | . . . . . . . Impact . | . . . . . . . Slashing . | . . . . . . . Piercing . | . . . . . . . Sneak Attacks . | . . . . . . . Combat Hostiles . | . . . . . . . Follow-up Attacks . | . . . . . . . Damage Inflicted 1516 | . 435 194 373 . . 514 Guns 979 | . 435 54 . . . 490 Cannons 140 | . . 140 . . . . Explosions 373 | . . . 373 . . . Melee . | . . . . . . . Ramming 24 | . . . . . . 24 Kinetic 875 | . 435 54 . . . 386 Thermal 244 | . . 140 . . . 104 Explosive 373 | . . . 373 . . . Electromagnetic . | . . . . . . . Impact . | . . . . . . . Slashing . | . . . . . . . Piercing . | . . . . . . . Highest Corruption 5 | . . . 5 5 5 1 Average Corruption 4 | . . . 5 5 5 1 Corruption Purged . | . . . . . . . Effects 10 | . . . 2 6 2 . Message Errors 2 | . . . 1 1 . . Matter Fused 5 | . . . 1 2 2 . Heat Flow Errors 1 | . . . . 1 . . Data Loss (minor) 1 | . . . . 1 . . Data Loss (major) 1 | . . . . 1 . . Overload Shots . | . . . . . . . Overflow Damage . | . . . . . . . Projectiles . | . . . . . . . Explosions . | . . . . . . . Melee . | . . . . . . . Knockbacks . | . . . . . . . Impact . | . . . . . . . Kinetic . | . . . . . . . Secondary . | . . . . . . . Self-Inflicted Damage 11 | . . . . . . 11 Shots . | . . . . . . . Rammed 5 | . . . . . . 5 Targets Rammed 5 | . . . . . . 5 Kicked . | . . . . . . . Crushed . | . . . . . . . Highest Temperature 332 | . 18 332 13 209 . 80 Average Temperature 74 | . 8 131 11 109 . 32 Received Heat Transfer 815 | . 114 159 80 . 9 453 Siege Activations . | . . . . . . . Robots Corrupted . | . . . . . . . Combat Hostiles . | . . . . . . . Parts Fried . | . . . . . . . Impact Corruptions . | . . . . . . . Robots Melted . | . . . . . . . Combat Hostiles . | . . . . . . . Parts Melted . | . . . . . . . Heat Transferred 555 | . . 296 . . . 259 Parts Sabotaged . | . . . . . . . Parts Stolen . | . . . . . . . Parts Stripped . | . . . . . . . Power Chain Reactions . | . . . . . . . Missiles Intercepted . | . . . . . . . Alert | -11 -10 -9 -9 -9 -8 -8 ------- Run | Scr Mat Mat Min Exi Min Mat Peak Influence 160 | . 117 102 31 . . 160 Average Influence 50 | . 62 51 25 . . 73 Maximum Alert Level . | . . . . . . . Low Security (%) 100 | . . . . . . . Level 1 . | . . . . . . . Level 2 . | . . . . . . . Level 3 . | . . . . . . . Level 4 . | . . . . . . . Level 5 . | . . . . . . . High Security . | . . . . . . . Max Security . | . . . . . . . Squads Dispatched 1 | . . 1 . . . . Investigation . | . . . . . . . Extermination . | . . . . . . . Reinforcement 1 | . . 1 . . . . Assault . | . . . . . . . Garrison . | . . . . . . . Intercept . | . . . . . . . Construction Impeded . | . . . . . . . Haulers Reinforced . | . . . . . . . Stealth | -11 -10 -9 -9 -9 -8 -8 --------- Run | Scr Mat Mat Min Exi Min Mat Distress Signals 2 | . 1 . . . . 1 Communications Jammed . | . . . . . . . Distress Signals . | . . . . . . . Times Spotted 67 | . 18 9 22 . 2 16 Peak Tracking Total 20 | . 7 4 20 . 3 9 Tactical Retreats 7 | . 2 1 1 . 1 2 Traps | -11 -10 -9 -9 -9 -8 -8 ------- Run | Scr Mat Mat Min Exi Min Mat Traps Triggered 1 | . . . . . . 1 Indirectly . | . . . . . . . Trap Hack Attempts . | . . . . . . . Triggered . | . . . . . . . Disarmed . | . . . . . . . Reprogrammed . | . . . . . . . Reused . | . . . . . . . Traps Extracted . | . . . . . . . Installed . | . . . . . . . Triggered . | . . . . . . . Machines | -11 -10 -9 -9 -9 -8 -8 ---------- Run | Scr Mat Mat Min Exi Min Mat Machines Disabled . | . . . . . . . Max in Single Turn . | . . . . . . . Machines Sabotaged . | . . . . . . . Garrisons Compromised . | . . . . . . . Overloaded Fab Kills . | . . . . . . . Fab Network Shutdowns . | . . . . . . . Hacking | -11 -10 -9 -9 -9 -8 -8 --------- Run | Scr Mat Mat Min Exi Min Mat Machines Accessed 5 | . 2 2 . 1 . . Terminals 1 | . . 1 . . . . Fabricators . | . . . . . . . Repair Stations 1 | . 1 . . . . . Recycling Units 2 | . 1 1 . . . . Scanalyzers . | . . . . . . . Garrison Access . | . . . . . . . Total Hacks 32 | . 5 4 . 23 . . Successful 32 | . 5 4 . 23 . . Failed . | . . . . . . . Catastrophic . | . . . . . . . Database Lockouts . | . . . . . . . Manual . | . . . . . . . Terminals 1 | . . 1 . . . . Fabricators . | . . . . . . . Repair Stations 3 | . 3 . . . . . Recycling Units 5 | . 2 3 . . . . Scanalyzers . | . . . . . . . Garrison Access . | . . . . . . . Terminal Hacks 24 | . . 1 . 23 . . Record 24 | . . 1 . 23 . . Fabricator Hacks . | . . . . . . . Repair Station Hacks 3 | . 3 . . . . . Scan Component 2 | . 2 . . . . . Repair 1 | . 1 . . . . . Recycling Unit Hacks 5 | . 2 3 . . . . Recycle Component 1 | . . 1 . . . . Process 2 | . 1 1 . . . . Report Inventory 2 | . 1 1 . . . . Scanalyzer . | . . . . . . . Garrison Access Hacks . | . . . . . . . Unauthorized Hacks . | . . . . . . . Terminals . | . . . . . . . Fabricators . | . . . . . . . Repair Stations . | . . . . . . . Recycling Units . | . . . . . . . Scanalyzers . | . . . . . . . Garrison Access . | . . . . . . . Data Cores Recovered . | . . . . . . . Used . | . . . . . . . Hacking Detections 1 | . 1 . . . . . Full Trace Events . | . . . . . . . Feedback Events . | . . . . . . . Feedback Blocked . | . . . . . . . Robot Schematics Acquired . | . . . . . . . Robots Built . | . . . . . . . Matter . | . . . . . . . Time . | . . . . . . . Total Robot Build Rating . | . . . . . . . Part Schematics Acquired . | . . . . . . . Parts Built . | . . . . . . . Matter . | . . . . . . . Time . | . . . . . . . Total Part Build Rating . | . . . . . . . Parts Repaired 1 | . 1 . . . . . Time 26 | . 26 . . . . . Parts Recycled 1 | . . 1 . . . . Recycled Matter 159 | . 109 50 . . . . Retrieved Matter . | . . . . . . . Retrieved Components . | . . . . . . . Parts Scanalyzed . | . . . . . . . Part Schematics Acquired . | . . . . . . . Parts Damaged . | . . . . . . . Bothacking | -11 -10 -9 -9 -9 -8 -8 ------------ Run | Scr Mat Mat Min Exi Min Mat Used RIF Installer . | . . . . . . . Robots Hacked . | . . . . . . . Non-combat . | . . . . . . . Combat . | . . . . . . . Robot Hacks Applied . | . . . . . . . Relay Couplers Released . | . . . . . . . Robots Rewired . | . . . . . . . Allies Hacked . | . . . . . . . Hacks Repelled . | . . . . . . . Allies | -11 -10 -9 -9 -9 -8 -8 -------- Run | Scr Mat Mat Min Exi Min Mat Total Allies . | . . . . . . . Largest Group . | . . . . . . . Highest-Rated Group . | . . . . . . . Highest-Rated Ally . | . . . . . . . Total Orders . | . . . . . . . Ally Attacks . | . . . . . . . Total Damage . | . . . . . . . Kills . | . . . . . . . Allies Corrupted . | . . . . . . . Allies Melted . | . . . . . . . Intel | -11 -10 -9 -9 -9 -8 -8 ------- Run | Scr Mat Mat Min Exi Min Mat Robot Analysis Total . | . . . . . . . Derelict Logs Recovered 1 | . . . 1 . . . Drone Launches . | . . . . . . . Drone Recoveries . | . . . . . . . Exploration | -11 -10 -9 -9 -9 -8 -8 ------------- Run | Scr Mat Mat Min Exi Min Mat Turns Passed 2431 | 73 822 356 395 170 131 484 Spaces Moved 1779 | 55 456 243 327 217 168 313 Core 25 | 4 . . . . . 21 Treads . | . . . . . . . Legs 1035 | 51 456 243 285 . . . Wheels . | . . . . . . . Hover 719 | . . . 42 217 168 292 Flight . | . . . . . . . Fastest Speed 50 | 50 120 120 80 76 76 76 Average Speed 108 | 114 120 120 115 76 76 112 Slowest Speed 1100 | 120 150 150 150 76 76 1100 Overloaded Moves . | . . . . . . . Propulsion Burnouts . | . . . . . . . Robots Hopped . | . . . . . . . Cave-ins Triggered . | . . . . . . . Exploration Rate (%) 38 | 4 68 19 41 56 54 24 Regions Visited 6 Branch Regions 3 Pre-discovered Areas 1 | . . . . 1 . . Known Exits Taken . | . . . . . . . Unknown Exits Taken 6 | 1 1 1 1 1 1 . Scrap Searched . | . . . . . . . Spaces Dug . | . . . . . . . Terrain Destroyed 11 | . . . 11 . . . Melee . | . . . . . . . Projectile . | . . . . . . . AOE 11 | . . . 11 . . . Actions | -11 -10 -9 -9 -9 -8 -8 --------- Run | Scr Mat Mat Min Exi Min Mat Total 2144 | 62 658 290 343 221 170 400 Wait 170 | . 146 14 4 . . 6 Move 1773 | 54 455 242 326 216 167 313 Hop . | . . . . . . . Pick Up 21 | 2 4 . 4 1 1 9 Fast Attach 25 | 6 2 3 3 1 1 9 Attach 12 | . . 1 3 2 . 6 Detach 10 | . . 1 . . . 9 Swap 14 | . 3 6 . . 1 4 Drop 15 | . 1 5 2 1 . 6 Fire 99 | . 47 18 1 . . 33 Melee . | . . . . . . . Ram 5 | . . . . . . 5 Kick . | . . . . . . . Crush . | . . . . . . . Escape Stasis . | . . . . . . . Rewire . | . . . . . . . Trap . | . . . . . . . Miscellaneous . | . . . . . . . Route ------- -11/Scrapyard -10/Materials (discovered 2 exits: *Mat x2) -9/Materials -9/Mines (discovered 3 exits: [*Mat] / *Exi / [*Zio]) -9/Exiles (discovered 2 exits: [*Min x2]) -8/Mines -8/Materials (discovered 1 exit: Fac) History --------- Turn | Location | Event 3 | -11/Scrapyard | Discovered new exit (range 16) 74 | -11/Scrapyard | Entered Materials 313 | -10/Materials | Build established: Mutant 407 | -10/Materials | Repaired Lgt. Ion Engine 518 | -10/Materials | Discovered new exit (range 4) 864 | -10/Materials | Discovered new exit (range 9) 896 | -10/Materials | Entered another Materials area 896 | -9/Materials | Evolved 2 slots: Utility x2 1218 | -9/Materials | Discovered new exit (range 3) 1252 | -9/Materials | Entered Mines 1283 | -9/Mines | A Derelict revealed a hidden shortcut to a safe place 1393 | -9/Mines | Received a Rocket Launcher from a helpful Derelict 1412 | -9/Mines | Deemed a non-threat by the Exiles lab entrance 1413 | -9/Mines | Discovered new exit (range 5) 1434 | -9/Mines | Discovered new exit (range 8) 1558 | -9/Mines | Assembled infested the area 1609 | -9/Mines | Lost 3 parts (1p2u) 1647 | -9/Mines | Entered Exiles 1653 | -9/Exiles | Lost 3 parts (1n2u) 1668 | -9/Exiles | Discovered new exit (range 14) 1688 | -9/Exiles | Met 8R-AWN 1703 | -9/Exiles | Met EX-HEX 1735 | -9/Exiles | Met EX-DEC 1752 | -9/Exiles | Learned location of Zion (-7) 1808 | -9/Exiles | Discovered new exit (range 14) 1817 | -9/Exiles | Entered Mines 1931 | -8/Mines | Discovered new exit (range 7) 1947 | -8/Mines | Build established: Scavenger-Mutant 1948 | -8/Mines | Entered Materials 1948 | -8/Materials | Evolved 2 slots: Utility x2 1949 | -8/Materials | Identified exit to Factory 2407 | -8/Materials | Core integrity fell below 50% 2430 | -8/Materials | Core integrity fell below 20% 2432 | -8/Materials | Destroyed by H-55 Commando with Assault Rifle Last Messages --------------- 02381_ Acquired 60 matter. 02382_ R-06 Scavenger collects Imp. Heat Sink. 02387_ Sml. Storage Unit destroyed. 02389_ R-06 Scavenger collects Imp. Field Recycling Unit. 02389_ Dropped Deuterium Engine. 02392_ R-06 Scavenger inserts Carbon-fiber Leg into recycling unit. 02393_ Recycling unit begins recycling process. 02393_ Penetrated by Slug. 02393_ Slammed into H-55 Commando. 02395_ R-06 Scavenger inserts Aluminum Leg into recycling unit. 02395_ Slammed into H-55 Commando. 02399_ Triggered Shock Trap. 02399_ The floor emits a surge of raw power. 02399_ System corrupted (+1). 02404_ U-05 Engineer lays Concrete. 02408_ Penetrated by Slug. 02408_ Cmb. Airjet destroyed. 02411_ Penetrated by Slug. 02426_ Slug penetrates Wall. 02432_ Penetrated by Slug. Map ----- +----------------------------------------------------+ | ???# ! # #??????????????????????????? | | #### % %/! "T" #??????????????????????????? | | #= #??????????????????????????? | | #########??????????????????????????? | | #### #??????????????????????????????????? | | #######?## ###????????????????????????????????? | | #???????# !#????????????????????????????????? | | #???????#! #????????????????????????????????? | | #???????#! !!#????????????????????????????????? | | #???????########????????????????????????????????? | | #???????????????????????????????????????????????? | | #???????????????????????????????????????????????? | | ##########????????#######???????????????????????? | | # #????????# #???????????????????????? | | # "" % #????????# """ #???????????????????????? | | # """ ########## """ #???????????????????????? | | # """ ## ## """ #???????????????????????? | | + ## ## #???????????????????????? | | # "" ## """ ## """ #???????????????????????? | | # "Y ## """ ## """ #???????????????????????? | | #*"" ## """ ## """ #???????????????????????? | | # % #?? ?# #??????????#????????????? | | #####/########+######+######+### #????????????? | | h #????????????? | | Y g +????????????? | | k gg @ !!! #????????????? | | ######### !!! #????????????? | | ????????# """ !! #????????????? | | !!! ????????# """"" #????????????? | | !!! ????????#r """"" #????????????? | | !!! ?????????# """"" ???????????? | | ?????????# """ !] ??????????? | | ?????????# ? !] ??????????? | | ??????????# ? ???????????? | | ###??????????# ?? #???????????? | | ?????????????# #########??#########????????????? | | ?????????????# #???????????????????????????????? | | ?????????????# #???????????????????????????????? | | ?????????????? #???????????????????????????????? | | ?????????????????????????????????????????????????? | | ?????????????????????????????????????????????????? | | ?????????????????????????????????????????????????? | | ?????????????????????????????????????????????????? | | ?????????????????????????????????????????????????? | | ?????????????????????????????????????????????????? | | ?????????????????????????????????????????????????? | | ?????????????????????????????????????????????????? | | ?????????????????????????????????????????????????? | | ?????????????????????????????????????????????????? | | ?????????????????????????????????????????????????? | +----------------------------------------------------+ Best States ------------- Heat Dissipation 45 Energy Generation 14 Energy Capacity 275 Matter Stores 627 Matter Capacity 650 Sight Range 16 Terrain Scan Range 14 Terrain Scan Density 10 Armor Coverage 300 Resistance: EX 25 Evasion (%) 55 Salvage Targeting 4 Item Schematics ----------------- None Robot Schematics ------------------ None Fabricated ------------ Nothing Alien Tech Used ----------------- None Achievements -------------- Hey, That's Mine! I Survived The Infestation Librarian Quick And Dirty Tourist Unlikely Earthworm Challenges ------------ None Game ------ Seed HellfireLobotomyKatana Manual? 0 Play Time 00:48:33 Cumulative 8.2 hours Start 2019.10.22 @ 05:13:48 End 2019.10.22 @ 12:43:55 Sessions 1 Manual Loads 0 Difficulty Rogue Special Mode None Game No. 15 Rogue 15 Adventurer 0 Explorer 0 Win Type - Total 0 Types 0/0/0/0/0/0/0 Lore% 5 Gallery% 13 Achievement% 9 Wizard Run 0 Options --------- ASCII 0 Keyboard 1 Movement Numpad Keybinds 0 Fullscreen 2 Font 18/Smallcaps Map View 76x50 Tactical HUD 1 Map Filters NONE Filters NONE Steam 1 RUN: d4f8117e-2312-425b-b794-45d6f34f3ab7